[Event "European Corporate Championship 2022"]
[Site "Rotterdam"]
[Date "2022.06.19"]
[Round "5.17"]
[White "Afek, Yochanan"]
[Black "Pardo Simon, David"]
[Result "0-1"]
[ECO "B06"]
[WhiteElo "2210"]
[BlackElo "2461"]
[Annotator "TA"]
[PlyCount "82"]
[EventDate "2022.06.18"]
[EventType "team-tourn"]
[EventCountry "NED"]
[SourceTitle "playchess.com"]
[Source "ChessBase"]
[SourceQuality "1"]
[TimeControl "900+5"]

{[%evp 9,82,44,75,74,109,104,101,68,66,53,53,52,52,51,52,50,56,49,44,29,22,21,36,-25,-8,-7,-3,-28,-31,-32,-24,-59,-35,-46,-57,-94,-27,-43,-60,-163,-109,-178,-174,-174,-164,-843,-839,-902,-882,-1198,-1217,-2085,-2030,-29973,-29974,-29956,-11167,-6460,-5393,-9554,-1203,-1203,-1162,-29989,-29981,-29981,-6395,-29983,-29984,-29984,-29985,-29984,-29985,-29989,-29990]} 1. e4 {[%emt 0:00:26]} d6 {[%emt 0:00:13]} 2. d4 {[%emt 0:00:16]} g6 {[%emt 0:00:02]} 3. f4 {[%emt 0:00:31]} Bg7 {[%emt 0:00:05]} 4. Nf3 {[%emt 0:00:03]} a6 {[%emt 0:00:02]} 5. Bd3 {[%emt 0:00:14]} b5 {[%emt 0:00:02]} 6. O-O {[%emt 0:00:04] B06: Modern Defence.} c5 {[%emt 0:01:19] [#]} 7. dxc5 $146 {[%emt 0:01:00]} ({Predecessor:} 7. a4 c4 8. Be2 Bb7 9. Nbd2 Nf6 10. f5 Nxe4 11. Nxe4 Bxe4 12. Ng5 gxf5 13. Nxe4 fxe4 14. axb5 {0-1 (30) Mochalin,F (1973)-Pogorelskikh,S (2223) Samara 2017}) 7... dxc5 {[%emt 0:00:02]} 8. c3 {[%emt 0:00:08] White is better.} Bb7 {[%emt 0:00:32]} 9. a4 {[%emt 0:00:44]} c4 {[%emt 0:00:21]} 10. Bc2 {[%emt 0:00:01]} Qb6+ {[%emt 0:01:19]} 11. Kh1 {[%emt 0:00:04]} Nf6 {[%emt 0:01:04]} 12. Qe2 {[%emt 0:00:30]} O-O {[%emt 0:01:30]} 13. axb5 {[%emt 0:01:26]} axb5 {[%emt 0:00:02]} 14. Rxa8 {[%emt 0:00:02]} Bxa8 {[%emt 0:00:01]} 15. Na3 {[%emt 0:00:03]} Nbd7 {[%emt 0:00:57]} 16. Be3 {[%emt 0:00:16]} ({White should try} 16. Nd4 $14) 16... Qb7 {[%emt 0:00:25]} 17. e5 {[%emt 0:00:53]} Nd5 {[%emt 0:00:39]} 18. Bc1 {[%emt 0:00:16]} e6 {[%emt 0:02:10]} 19. Nd4 {[%emt 0:00:04]} Nc7 {[%emt 0:01:29]} 20. Be3 {[%emt 0:01:04]} Rd8 {[%emt 0:00:25]} 21. Bg1 {[%emt 0:00:11]} Bf8 {[%emt 0:00:25]} 22. Rf3 {[%emt 0:01:03]} Nb8 {[%emt 0:00:46]} ({Black should play} 22... Qa6 $17 23. Rh3 Bxa3 24. bxa3 Qxa3) 23. f5 {[%emt 0:00:12]} exf5 {[%emt 0:00:09]} 24. Nxf5 {[%emt 0:00:16] White is now going downhill.} Ne6 {[%emt 0:00:33]} (24... Re8 $19 25. Ng3 Nd7) 25. Nd6 {[%emt 0:00:55]} (25. Nd4 $17) 25... Bxd6 $19 {[%emt 0:00:16]} 26. exd6 {[%emt 0:00:01]} Rxd6 {[%emt 0:00:02][%cal Bd8d6,Bd6e6,Be6e1][%mdl 32]} 27. Bd4 $2 {[%emt 0:00:57]} (27. Rf2) 27... Nxd4 {[%emt 0:00:51]} 28. cxd4 {[%emt 0:00:01]} Re6 {[%emt 0:00:08]} 29. Qf2 {[%emt 0:00:21]} Qe7 {[%emt 0:00:05] ( -> ...Re1+)} 30. h3 {[%emt 0:00:28]} Bxf3 {[%emt 0:00:25]} 31. Qxf3 {[%emt 0:00:01]} Re1+ {[%emt 0:00:02]} 32. Kh2 {[%emt 0:00:02]} Qd6+ {[%emt 0:00:02]} 33. g3 {[%emt 0:00:04]} Qxd4 {[%emt 0:00:07][%csl Ge1][%cal Rd4g1]} 34. h4 {[%emt 0:00:20]} Qg1+ {[%emt 0:00:50]} 35. Kh3 {[%emt 0:00:00]} Re3 {[%emt 0:00:02]} 36. Qf4 {[%emt 0:00:27]} Qh1+ {[%emt 0:00:17]} 37. Kg4 {[%emt 0:00:02]} Re8 {[%emt 0:00:17]} (37... h5+ $142 38. Kg5 Qd5+ 39. Kh6 {[#]} Nd7 $1 40. Bf5 gxf5 $1 41. Qg5+ Kf8 42. Kh7 Re8 43. Qh6+ Ke7 44. Qe3+ Kd8 45. Qg5+ f6 46. Qg7 Re7 47. b3 Ne5 48. Kh8 Rxg7 49. Kxg7 Qf7+ 50. Kh8 Ng6#) 38. Nxb5 {[%emt 0:00:19]} h5+ {[%emt 0:00:10] Black mates.} 39. Kg5 {[%emt 0:00:03]} Qd5+ {[%emt 0:00:01]} 40. Kh6 {[%emt 0:04:37]} Qxb5 {[%emt 0:00:03]} 41. Qf6 Qe5 {[%emt 0:00:05] Weighted Error Value: White=1.29/Black=0.30} 0-1

[Event "European Corporate Championship 2022"]
[Site "Rotterdam"]
[Date "2022.06.19"]
[Round "5.18"]
[White "Jain Aum"]
[Black "Theulings, Paul-Peter"]
[Result "0-1"]
[ECO "C45"]
[WhiteElo "1591"]
[BlackElo "2063"]
[Annotator "NA RC"]
[PlyCount "135"]
[EventDate "2022.06.18"]
[EventType "team-tourn"]
[EventCountry "NED"]
[SourceTitle "playchess.com"]
[Source "ChessBase"]
[SourceQuality "1"]
[TimeControl "900+5"]

1. e4 {[%emt 0:00:04]} e5 {[%emt 0:00:02]} 2. Nf3 {[%emt 0:00:13]} Nc6 {[%emt 0:00:03]} 3. d4 {[%emt 0:00:03]} exd4 {[%emt 0:00:03]} 4. Nxd4 {[%emt 0:00:02]} Nf6 {[%emt 0:00:03]} 5. Nxc6 {[%emt 0:00:13]} bxc6 {[%emt 0:00:03]} 6. e5 {[%emt 0:00:01]} Qe7 {[%emt 0:00:05]} 7. Qe2 {[%emt 0:00:00]} Nd5 {[%emt 0:00:04]} 8. c4 {[%emt 0:00:02]} Nb6 {[%emt 0:00:04]} 9. Nc3 {[%emt 0:00:37]} Qe6 {[%emt 0:00:32]} 10. Qe4 {[%emt 0:01:12]} d5 {[%emt 0:00:40]} 11. exd6 {[%emt 0:01:13]} Qxe4+ {[%emt 0:00:06]} 12. Nxe4 {[%emt 0:00:04]} cxd6 {[%emt 0:00:06]} 13. Bf4 {[%emt 0:01:18]} d5 {[%emt 0:00:32]} 14. cxd5 {[%emt 0:01:00]} Nxd5 {[%emt 0:00:26]} 15. Bd6 {[%emt 0:01:46]} Bxd6 {[%emt 0:01:42]} 16. Nxd6+ {[%emt 0:00:20]} Ke7 {[%emt 0:00:13]} 17. Nxc8+ {[%emt 0:00:25]} Raxc8 {[%emt 0:00:05]} 18. Bc4 {[%emt 0:00:57]} Rhe8 {[%emt 0:01:12]} 19. O-O-O {[%emt 0:02:02]} Kd6 {[%emt 0:00:17]} 20. Rhe1 {[%emt 0:00:40]} f6 {[%emt 0:00:47]} 21. g3 {[%emt 0:00:10]} Kc5 {[%emt 0:00:46]} 22. b3 {[%emt 0:01:04]} Rcd8 {[%emt 0:00:15]} 23. Bxd5 {[%emt 0:01:26]} cxd5 {[%emt 0:00:08]} 24. Kc2 {[%emt 0:00:07]} a5 {[%emt 0:01:14]} 25. a3 {[%emt 0:00:37]} Kd6 {[%emt 0:01:04]} 26. Kd3 {[%emt 0:00:11]} Rb8 {[%emt 0:00:10]} 27. Rxe8 {[%emt 0:00:06]} Rxe8 {[%emt 0:00:03]} 28. Rb1 {[%emt 0:00:07]} Rc8 {[%emt 0:01:09]} 29. b4 {[%emt 0:00:23]} axb4 {[%emt 0:00:13]} 30. axb4 {[%emt 0:00:03]} Ra8 {[%emt 0:00:13]} 31. Rb2 {[%emt 0:00:44]} Ra1 {[%emt 0:00:27]} 32. b5 {[%emt 0:00:12]} Ra3+ {[%emt 0:00:43]} 33. Kd4 {[%emt 0:00:05]} Ra4+ {[%emt 0:00:03]} 34. Kd3 {[%emt 0:00:02]} Ra3+ {[%emt 0:00:48]} 35. Kd4 {[%emt 0:00:02]} Ra4+ {[%emt 0:00:02]} 36. Kc3 {[%emt 0:00:14]} Kc7 {[%emt 0:01:11]} 37. Rd2 {[%emt 0:00:14]} Rc4+ {[%emt 0:00:53]} 38. Kb3 {[%emt 0:00:05]} Rc5 {[%emt 0:00:14]} 39. Kb4 {[%emt 0:00:02]} Kb6 {[%emt 0:00:03]} 40. Re2 {[%emt 0:00:10]} Rxb5+ {[%emt 0:00:04]} 41. Kc3 {[%emt 0:00:00]} Kc6 {[%emt 0:00:23]} 42. Re7 {[%emt 0:00:04]} Rb7 {[%emt 0:00:04]} 43. Re6+ {[%emt 0:00:08]} Kc5 {[%emt 0:00:04]} 44. Re8 {[%emt 0:00:06]} Rc7 {[%emt 0:00:07]} 45. Ra8 {[%emt 0:00:04]} h6 {[%emt 0:00:03]} 46. Kd3 {[%emt 0:00:02]} Kd6 {[%emt 0:00:05]} 47. Ra6+ {[%emt 0:00:02]} Rc6 {[%emt 0:00:02]} 48. Ra7 {[%emt 0:00:01]} Rc7 {[%emt 0:00:06]} 49. Ra6+ {[%emt 0:00:02]} Ke5 {[%emt 0:00:18]} 50. f4+ {[%emt 0:00:01]} Kf5 {[%emt 0:00:02]} 51. h3 {[%emt 0:00:04]} Rb7 {[%emt 0:00:20]} 52. Ra3 {[%emt 0:00:02]} Rb4 {[%emt 0:00:08]} 53. Ke3 {[%emt 0:00:11]} h5 {[%emt 0:00:10]} 54. Kf3 {[%emt 0:00:10]} Kg6 {[%emt 0:00:06]} 55. Rd3 {[%emt 0:00:05]} Rb5 {[%emt 0:00:07]} 56. g4 {[%emt 0:00:03]} hxg4+ {[%emt 0:00:14]} 57. hxg4 {[%emt 0:00:01]} Ra5 {[%emt 0:00:06]} 58. Ke3 {[%emt 0:00:09]} Kf7 {[%emt 0:00:03]} 59. f5 {[%emt 0:00:06]} Ke7 {[%emt 0:00:09]} 60. Rb3 {[%emt 0:00:12]} Ra7 {[%emt 0:00:10]} 61. Kd4 {[%emt 0:00:09]} Ra4+ {[%emt 0:00:05]} 62. Kxd5 {[%emt 0:00:01]} Rxg4 {[%emt 0:00:04]} 63. Rb7+ {[%emt 0:00:09]} Kf8 {[%emt 0:00:05]} 64. Rb8+ {[%emt 0:00:03]} Kf7 {[%emt 0:00:01]} 65. Rb7+ {[%emt 0:00:08]} Kg8 {[%emt 0:00:01]} 66. Rb8+ {[%emt 0:00:09]} Kh7 {[%emt 0:00:06]} 67. Ke6 {[%emt 0:00:01]} Rd4 {[%emt 0:00:23]} 68. Rb5 {[%emt 0:00:16]} 0-1

[Event "European Corporate Championship 2022"]
[Site "Rotterdam"]
[Date "2022.06.19"]
[Round "5.19"]
[White "Malachi, Avraham"]
[Black "Maral Pranav"]
[Result "1-0"]
[ECO "A07"]
[WhiteElo "1997"]
[BlackElo "1329"]
[Annotator "NA RC"]
[PlyCount "71"]
[EventDate "2022.06.18"]
[EventType "team-tourn"]
[EventCountry "NED"]
[SourceTitle "playchess.com"]
[Source "ChessBase"]
[SourceQuality "1"]
[TimeControl "900+5"]

1. e4 {[%emt 0:00:03]} e6 {[%emt 0:00:04]} 2. d3 {[%emt 0:00:02]} d5 {[%emt 0:00:04]} 3. Nd2 {[%emt 0:00:01]} Nf6 {[%emt 0:00:02]} 4. Ngf3 {[%emt 0:00:02]} Be7 {[%emt 0:00:18]} 5. g3 {[%emt 0:00:12]} O-O {[%emt 0:00:08]} 6. Bg2 {[%emt 0:00:04]} c6 {[%emt 0:01:39]} 7. O-O {[%emt 0:00:08]} Qb6 {[%emt 0:00:40]} 8. Re1 {[%emt 0:00:30]} dxe4 {[%emt 0:02:11]} 9. dxe4 {[%emt 0:00:11]} Rd8 {[%emt 0:00:36]} 10. Qe2 {[%emt 0:00:23]} Nbd7 {[%emt 0:00:45]} 11. e5 {[%emt 0:03:46]} Nd5 {[%emt 0:00:33]} 12. Ne4 {[%emt 0:00:47]} Qc7 {[%emt 0:01:47]} 13. c4 {[%emt 0:01:04]} Nb4 {[%emt 0:01:06]} 14. a3 {[%emt 0:02:17]} Na6 {[%emt 0:00:25]} 15. Bf4 {[%emt 0:00:42]} Nf8 {[%emt 0:00:37]} 16. h4 {[%emt 0:02:34]} Ng6 {[%emt 0:00:12]} 17. Bg5 {[%emt 0:00:02]} h6 {[%emt 0:01:03]} 18. Bxe7 {[%emt 0:00:07]} Qxe7 {[%emt 0:00:02]} 19. b4 {[%emt 0:00:28]} Bd7 {[%emt 0:01:17]} 20. Nd6 {[%emt 0:00:16]} Be8 {[%emt 0:00:24]} 21. c5 {[%emt 0:00:05]} Nc7 {[%emt 0:00:13]} 22. Nd4 {[%emt 0:00:26]} Nd5 {[%emt 0:00:22]} 23. Bxd5 {[%emt 0:00:07]} exd5 {[%emt 0:00:18]} 24. f4 {[%emt 0:00:10]} Rab8 {[%emt 0:00:54]} 25. f5 {[%emt 0:00:13]} Nxh4 {[%emt 0:00:47]} 26. gxh4 {[%emt 0:00:02]} Qxh4 {[%emt 0:00:02]} 27. Nf3 {[%emt 0:00:17]} Qg3+ {[%emt 0:00:30]} 28. Qg2 {[%emt 0:00:05]} Qf4 {[%emt 0:00:08]} 29. Rad1 {[%emt 0:00:24]} h5 {[%emt 0:00:13]} 30. Rd4 {[%emt 0:00:06]} Qh6 {[%emt 0:00:03]} 31. f6 {[%emt 0:00:19]} g6 {[%emt 0:00:03]} 32. Nf5 {[%emt 0:00:11]} Qh7 {[%emt 0:00:12]} 33. Ne7+ {[%emt 0:00:03]} Kh8 {[%emt 0:00:01]} 34. Ng5 {[%emt 0:00:04]} Qh6 {[%emt 0:00:06]} 35. e6 {[%emt 0:00:16]} fxe6 {[%emt 0:00:06]} 36. Nxe6 {[%emt 0:00:17]} 1-0

[Event "European Corporate Championship 2022"]
[Site "Rotterdam"]
[Date "2022.06.19"]
[Round "5.20"]
[White "Pedersen, Christopher R.N.H."]
[Black "Burstein, Almog"]
[Result "1-0"]
[ECO "B01"]
[WhiteElo "2118"]
[BlackElo "1829"]
[Annotator "NA RC"]
[PlyCount "27"]
[EventDate "2022.06.18"]
[EventType "team-tourn"]
[EventCountry "NED"]
[SourceTitle "playchess.com"]
[Source "ChessBase"]
[SourceQuality "1"]
[TimeControl "900+5"]

1. e4 {[%emt 0:00:02]} d5 {[%emt 0:00:06]} 2. exd5 {[%emt 0:00:08]} Nf6 {[%emt 0:00:03]} 3. d4 {[%emt 0:00:24]} Bg4 {[%emt 0:00:14]} 4. Be2 {[%emt 0:00:18]} Bxe2 {[%emt 0:00:27]} 5. Nxe2 {[%emt 0:00:04]} Qxd5 {[%emt 0:00:16]} 6. Nbc3 {[%emt 0:00:09]} Qxg2 {[%emt 0:00:25]} 7. Rg1 {[%emt 0:01:46]} Qf3 {[%emt 0:01:16]} 8. Bf4 {[%emt 0:00:55]} c6 {[%emt 0:02:39]} 9. Rg3 {[%emt 0:01:15]} Qh5 {[%emt 0:00:15]} 10. Rg1 {[%emt 0:00:49]} Nbd7 {[%emt 0:00:22]} 11. Qd2 {[%emt 0:00:08]} O-O-O {[%emt 0:01:02]} 12. O-O-O {[%emt 0:00:11]} e5 {[%emt 0:01:06]} 13. dxe5 {[%emt 0:00:33]} Nxe5 {[%emt 0:00:10]} 14. Qxd8# {[%emt 0:00:28]} 1-0